bitfinex/quotes_SOLUSD_20241110
["timestamp","ask_amount","ask_price","bid_price","bid_amount"]
[1731252114612,15.53519364,208.23,208.16,15.53519364]
[1731252115728,15.53519364,208.23,208.17,4.8037]
[1731252115928,15.53519364,208.23,208.15,15.53519364]
[1731252116128,15.53519364,208.21,208.15,4.8041]
[1731252117008,15.53519364,208.2,208.13,15.53519364]
[1731252117213,15.53519364,208.18,208.13,23.776884]
[1731252117522,16.806,208.26,208.12,4.8048]
[1731252117523,15.53519364,208.19,208.12,20.33999364]
[1731252117717,15.53519364,208.18,208.12,4.8048]
[1731252118314,15.53519364,208.19,208.12,32.35229364]
[1731252118720,15.53519364,208.19,208.12,16.8171]
[1731252119539,4.8017,208.26,208.13,39.31207764]
[1731252119834,15.53519364,208.21,208.14,15.53519364]
[1731252120213,15.53519364,208.21,208.13,39.31207764]
[1731252120419,15.53519364,208.2,208.13,39.31207764]
[1731252120724,15.53519364,208.2,208.13,23.776884]
[1731252120921,15.53519364,208.2,208.13,39.31207764]
[1731252121130,15.53519364,208.21,208.14,20.33959364]
[1731252121336,15.53519364,208.21,208.14,4.8044]
[1731252121632,15.53519364,208.2,208.14,4.8044]
[1731252121832,15.53519364,208.17,208.1,4.8053]
[1731252122035,15.53519364,208.12,208.08,6.3765]
[1731252122331,15.53519364,208.2,208.08,21.91169364]
[1731252122540,15.53519364,208.2,208.08,6.3765]
[1731252122721,15.53519364,208.2,208.07,12.0147]
[1731252122924,15.53519364,208.08,208.03,6.3765]
[1731252123128,15.53519364,208.05,207.99,4.8078]
[1731252123431,4.8037,208.17,207.99,40.8673]
[1731252124338,4.8037,208.17,208.0,23.776884]
[1731252124544,15.53519364,208.09,208.03,23.776884]
[1731252124834,15.53519364,208.11,208.04,15.53519364]
[1731252125337,15.53519364,208.09,208.03,40.600784]
[1731252125740,15.53519364,208.04,207.98,18.3967]
[1731252125929,0.1,208.14,207.98,18.3967]
[1731252125930,15.53519364,208.06,207.99,15.53519364]
[1731252126126,16.8131,208.17,207.98,18.3967]
[1731252126634,4.8033,208.19,208.01,0.1]
[1731252127239,15.53519364,208.18,208.11,15.53519364]
[1731252127940,15.53519364,208.22,208.1,6.5065]
[1731252128122,15.53519364,208.23,208.16,15.53519364]
[1731252128442,15.53519364,208.21,208.11,23.776884]
[1731252128642,15.53519364,208.21,208.13,15.53519364]
[1731252129029,15.53519364,208.2,208.13,15.53519364]
[1731252129430,15.53519364,208.22,208.15,15.53519364]
[1731252130043,15.53519364,208.23,208.16,15.53519364]
[1731252130340,15.53519364,208.22,208.15,15.53519364]
[1731252130522,15.53519364,208.22,208.13,16.8162]
[1731252130523,15.53519364,208.21,208.14,15.53519364]
[1731252131034,15.53519364,208.21,208.14,20.33939364]
[1731252131344,15.53519364,208.2,208.14,15.53519364]
[1731252131841,15.53519364,208.2,208.13,27.54689364]
[1731252132241,15.53519364,208.18,208.11,39.31207764]
[1731252132427,15.53519364,208.19,208.12,15.53519364]
[1731252132630,15.53519364,208.2,208.12,15.53519364]
[1731252132824,15.53519364,208.2,208.13,15.53519364]
[1731252133142,15.53519364,208.2,208.13,4.8044]
[1731252133442,16.805,208.27,208.12,27.54749364]
[1731252133443,15.53519364,208.19,208.12,27.54749364]
[1731252133822,15.53519364,208.18,208.12,12.0123]
[1731252134143,15.53519364,208.2,208.12,15.53519364]
[1731252134322,16.6286,208.35,208.19,39.31207764]
[1731252134521,4.7977,208.43,208.34,15.53519364]
[1731252134725,4.7977,208.43,208.24,23.876884]
[1731252134970,4.7977,208.43,208.26,23.776884]
[1731252135122,4.7977,208.43,208.27,4.8014]
[1731252135632,4.7977,208.43,208.2,22.1718]
[1731252135633,0.2,208.41,208.22,23.776884]
[1731252135829,15.53519364,208.3,208.22,39.31207764]
[1731252136024,15.53519364,208.27,208.22,23.776884]
[1731252136232,15.53519364,208.27,208.21,12.0071]
[1731252136626,22.8271,208.37,208.12,15.6653]
[1731252136627,15.53519364,208.24,208.17,23.776884]
[1731252136926,15.53519364,208.24,208.17,20.33889364]
[1731252137236,15.53519364,208.3,208.16,12.0099]
[1731252137237,15.53519364,208.21,208.16,12.0099]
[1731252137536,15.53519364,208.21,208.05,0.1]
[1731252137537,0.1,208.26,208.11,12.0127]
[1731252137848,15.53519364,208.16,208.09,15.53519364]
[1731252138143,15.53519364,208.18,208.11,15.53519364]
[1731252138448,15.53519364,208.17,208.1,15.53519364]
[1731252138747,18.70111233,208.29,208.13,15.53519364]
[1731252138748,15.53519364,208.2,208.13,15.53519364]
[1731252139040,15.53519364,208.17,208.1,15.53519364]
[1731252139223,15.53519364,208.17,208.06,16.8218]
[1731252139224,15.53519364,208.14,208.07,15.53519364]
[1731252139430,15.53519364,208.14,208.06,12.0157]
[1731252139431,15.53519364,208.15,208.08,15.53519364]
[1731252140248,15.53519364,208.14,208.06,32.35719364]
[1731252140443,15.53519364,208.15,208.08,15.53519364]
[1731252140827,15.53519364,208.15,208.1,15.53519364]
[1731252141022,15.53519364,208.19,208.12,15.53519364]
[1731252141344,15.53519364,208.19,208.11,16.8177]
[1731252141528,15.53519364,208.2,208.13,15.53519364]
[1731252141729,20.33809364,208.21,208.14,15.53519364]
[1731252142045,15.53519364,208.26,208.18,15.53519364]
[1731252142932,15.53519364,208.3,208.22,15.53519364]
[1731252143333,4.8003,208.32,208.24,15.53519364]
[1731252143340,15.53519364,208.31,208.24,15.53519364]
[1731252143529,0.1,208.45,208.25,39.31207764]
[1731252143730,15.53519364,208.41,208.34,15.53519364]
[1731252144031,15.53519364,208.41,208.27,23.776884]
[1731252144032,15.53519364,208.46,208.39,15.53519364]
[1731252144236,4.7952,208.54,208.42,15.53519364]
[1731252144553,24.96010534,208.66,208.32,43.876884]
[1731252144554,4.7946,208.57,208.37,0.1]
[1731252144845,4.7946,208.57,208.39,0.1]
[1731252145172,6.6557,208.62,208.39,0.1]
[1731252145450,4.7936,208.61,208.41,43.876884]
[1731252145635,15.53519364,208.59,208.51,15.53519364]
[1731252145835,15.53519364,208.58,208.5,15.53519364]
[1731252146041,4.7931,208.63,208.48,23.776884]
[1731252146042,15.53519364,208.55,208.48,23.776884]
[1731252146831,25.09455492,208.55,208.48,53.66803892]
[1731252147137,25.09455492,208.54,208.48,23.776884]
[1731252148045,25.09455492,208.55,208.48,23.776884]
[1731252148256,25.09455492,208.56,208.49,25.09455492]
[1731252148450,25.09455492,208.56,208.49,29.89085492]
[1731252148949,25.09455492,208.56,208.49,4.7963]
[1731252149249,25.09455492,208.54,208.47,53.66823892]
[1731252149445,25.09455492,208.53,208.46,11.9926]
[1731252149647,25.09455492,208.53,208.46,16.7896]
[1731252149857,25.09455492,208.53,208.46,41.88415492]
[1731252150147,25.09455492,208.53,208.46,25.09455492]
[1731252150353,25.09455492,208.55,208.48,25.09455492]
[1731252150659,25.09455492,208.6,208.46,25.09455492]
[1731252150660,25.09455492,208.53,208.46,25.09455492]
[1731252150838,25.09455492,208.52,208.45,25.09455492]
[1731252151033,25.09455492,208.52,208.44,25.09455492]
[1731252151229,25.09455492,208.49,208.42,25.09455492]
[1731252151446,25.09455492,208.48,208.41,29.89265492]
[1731252151641,25.09455492,208.48,208.41,25.09455492]
[1731252151844,23.8268084,208.48,208.4,11.9959]
[1731252152134,25.09455492,208.45,208.38,25.09455492]
[1731252152552,25.09455492,208.46,208.39,25.09455492]
[1731252152848,25.09455492,208.47,208.4,25.09455492]
[1731252153060,25.09455492,208.46,208.39,25.09455492]
[1731252153750,24.59455492,208.46,208.38,25.09455492]
[1731252153936,25.09455492,208.43,208.36,25.09455492]
[1731252154133,25.09455492,208.43,208.35,16.7986]
[1731252154350,25.09455492,208.43,208.36,25.09455492]
[1731252154652,25.09455492,208.45,208.37,25.09455492]
[1731252155235,25.09455492,208.45,208.39,25.09455492]
[1731252155435,25.09455492,208.45,208.37,25.09455492]
[1731252155649,29.89195492,208.45,208.37,25.09455492]
[1731252155846,25.09455492,208.43,208.36,23.776884]
[1731252156157,25.09455492,208.47,208.38,25.09455492]
[1731252158537,25.09455492,208.43,208.36,25.09455492]
[1731252158734,4.7975,208.44,208.36,25.09455492]
[1731252159238,25.09455492,208.43,208.36,25.09455492]
[1731252159654,25.09455492,208.41,208.33,25.09455492]
[1731252160040,25.09455492,208.43,208.35,25.09455492]
[1731252160664,25.09455492,208.41,208.33,25.09455492]
[1731252161163,25.09455492,208.43,208.35,25.09455492]
[1731252161347,29.89245492,208.43,208.35,25.09455492]
[1731252162359,29.89245492,208.43,208.25,0.1]
[1731252162360,25.09455492,208.39,208.27,12.0035]
[1731252162563,25.09455492,208.39,208.31,25.09455492]
[1731252162950,25.09455492,208.39,208.27,12.0035]
[1731252162951,25.09455492,208.35,208.27,37.09805492]
[1731252163361,4.7998,208.34,208.27,37.09805492]
[1731252163564,12.0944,208.43,208.27,37.09805492]
[1731252163565,4.7995,208.36,208.29,25.09455492]
[1731252163746,25.09455492,208.39,208.31,25.09455492]
[1731252164863,25.09455492,208.41,208.33,25.09455492]
[1731252165769,4.798,208.42,208.35,25.09455492]
[1731252166269,4.798,208.42,208.32,12.0004]
[1731252166270,4.798,208.42,208.37,25.09455492]
[1731252166654,4.7976,208.44,208.37,25.09455492]
[1731252166961,4.7976,208.44,208.34,16.7993]
[1731252166962,4.7976,208.44,208.38,15.45823524]
[1731252167362,4.7971,208.46,208.4,15.45823524]
[1731252167969,20.25493524,208.48,208.4,15.45823524]
[1731252168973,20.25493524,208.48,208.4,20.25653524]
[1731252169472,15.45823524,208.5,208.42,15.45823524]
[1731252169668,20.25453524,208.5,208.42,15.45823524]
[1731252169862,20.25453524,208.5,208.41,15.45823524]
[1731252170054,15.45823524,208.48,208.39,15.45823524]
[1731252170977,15.45823524,208.48,208.41,15.45823524]
[1731252171474,4.7968,208.47,208.39,15.45823524]
[1731252173653,4.7968,208.47,208.39,20.25683524]
[1731252174455,4.7968,208.47,208.41,15.45823524]
[1731252175084,15.45823524,208.51,208.43,15.45823524]
[1731252175752,4.7961,208.5,208.43,15.45823524]
[1731252175977,20.25433524,208.5,208.42,15.45823524]
[1731252176457,20.25433524,208.5,208.43,15.45823524]
[1731252177552,20.25433524,208.5,208.42,15.45823524]
[1731252177748,15.45823524,208.49,208.41,15.45823524]
[1731252177953,15.45823524,208.49,208.42,15.45823524]
[1731252178158,20.25433524,208.5,208.42,15.45823524]
[1731252179359,20.25433524,208.5,208.4,4.7983]
[1731252179360,15.45823524,208.46,208.34,11.9995]
[1731252179557,15.45823524,208.44,208.36,15.45823524]
[1731252179774,15.45823524,208.44,208.37,15.45823524]
[1731252179990,15.45823524,208.45,208.38,15.45823524]
[1731252180277,15.45823524,208.44,208.36,15.45823524]
[1731252180452,15.45823524,208.42,208.29,12.0024]
[1731252180651,4.7975,208.44,208.37,15.45823524]
[1731252180867,20.25573524,208.44,208.36,15.45823524]
[1731252181472,15.45823524,208.41,208.33,11.9996]
[1731252181666,4.7975,208.44,208.38,15.45823524]
[1731252183661,20.25543524,208.46,208.38,20.25703524]
[1731252183863,15.9078,208.57,208.38,20.25703524]
[1731252183864,4.7964,208.49,208.42,15.45823524]
[1731252184172,4.7964,208.49,208.43,15.45823524]
[1731252184352,4.7963,208.5,208.43,39.23511924]
[1731252184558,4.7963,208.5,208.36,0.1]
[1731252184559,15.45823524,208.45,208.35,4.7994]
[1731252184754,15.45823524,208.43,208.36,15.45823524]
[1731252185282,4.798,208.42,208.36,15.45823524]
[1731252185787,15.45823524,208.47,208.4,15.45823524]
[1731252185956,15.45823524,208.47,208.36,16.7976]
[1731252186282,35.9628,208.55,208.33,6.0107]
[1731252186283,15.45823524,208.41,208.34,15.45823524]
[1731252186574,15.45823524,208.37,208.3,15.45823524]
[1731252186779,6.2503,208.44,208.28,15.45823524]
[1731252186780,15.45823524,208.36,208.28,15.45823524]
[1731252186983,15.45823524,208.36,208.22,4.8024]
[1731252186984,16.4264,208.4,208.35,15.45823524]
[1731252187276,4.7986,208.4,208.35,15.45823524]
[1731252187654,15.45823524,208.38,208.31,15.45823524]
[1731252187855,20.25683524,208.4,208.33,15.45823524]
[1731252188167,20.25613524,208.43,208.35,15.45823524]
[1731252188875,20.25613524,208.43,208.3,32.26073524]
[1731252188876,4.7979,208.43,208.37,15.45823524]
[1731252189052,20.25563524,208.45,208.39,15.45823524]
[1731252189577,36.68163524,208.47,208.39,15.45823524]
[1731252190381,36.68163524,208.47,208.35,11.9988]
[1731252190584,15.45823524,208.46,208.39,23.776884]
[1731252190960,20.25533524,208.46,208.39,23.776884]
[1731252191361,20.25533524,208.46,208.38,15.45823524]
[1731252191777,20.25533524,208.46,208.35,16.7982]
[1731252191778,15.45823524,208.44,208.36,15.45823524]
[1731252192966,15.45823524,208.42,208.34,15.45823524]
[1731252193167,6.2503,208.49,208.3,12.0017]
[1731252193168,15.45823524,208.39,208.32,15.45823524]
[1731252194578,15.45823524,208.38,208.3,27.45993524]
[1731252194880,4.7993,208.36,208.3,15.45823524]
[1731252195079,15.45823524,208.35,208.26,4.8015]
[1731252195279,15.45823524,208.35,208.28,15.45823524]
[1731252195656,20.25753524,208.36,208.29,15.45823524]
[1731252196573,20.25753524,208.36,208.26,4.8016]
[1731252196574,4.7993,208.36,208.3,15.45823524]
[1731252196771,15.45823524,208.37,208.3,15.45823524]
[1731252197279,20.25743524,208.37,208.3,15.45823524]
[1731252197463,4.7992,208.37,208.31,15.45823524]
[1731252197672,4.7992,208.37,208.32,15.45823524]
[1731252197861,4.7992,208.37,208.31,15.45823524]
[1731252198467,15.45823524,208.39,208.31,15.45823524]
[1731252198668,20.25693524,208.39,208.31,20.25863524]
[1731252198986,4.7985,208.4,208.33,15.45823524]
[1731252199187,20.25673524,208.4,208.33,15.45823524]
[1731252199781,4.7985,208.4,208.34,15.45823524]
[1731252199968,15.45823524,208.39,208.33,4.7998]
[1731252200171,20.25673524,208.4,208.33,20.25803524]
[1731252200588,15.45823524,208.38,208.31,12.0013]
[1731252200881,4.7985,208.4,208.33,15.45823524]
[1731252200882,20.25673524,208.4,208.33,15.45823524]
[1731252201088,20.25673524,208.4,208.32,15.45823524]
[1731252201775,20.25633524,208.42,208.34,15.45823524]
[1731252201980,20.25583524,208.44,208.36,15.45823524]
[1731252202173,15.45823524,208.42,208.34,15.45823524]
[1731252202574,15.45823524,208.42,208.35,15.45823524]
[1731252202872,9.6634473,208.43,208.36,9.6634473]
[1731252203082,14.4613473,208.43,208.36,9.6634473]
[1731252204092,9.6634473,208.42,208.34,9.6634473]
[1731252204388,4.7979,208.43,208.32,9.6634473]
[1731252204389,9.6634473,208.39,208.32,9.6634473]
[1731252204591,9.6634473,208.37,208.3,9.6634473]
[1731252205067,9.6634473,208.34,208.25,16.8067]
[1731252205392,9.6634473,208.33,208.26,9.6634473]
[1731252205769,9.6634473,208.33,208.25,16.8067]
[1731252205770,9.6634473,208.34,208.27,9.6634473]
[1731252206169,14.4634473,208.34,208.27,14.4647473]
[1731252206386,9.6634473,208.37,208.3,9.6634473]
[1731252206892,15.46950059,208.39,208.32,15.46950059]
[1731252207077,15.46950059,208.37,208.31,15.46950059]
[1731252207987,15.46950059,208.37,208.3,15.46950059]
[1731252208376,20.26870059,208.37,208.3,15.46950059]
[1731252208684,15.46950059,208.36,208.29,20.27040059]
[1731252209375,15.46950059,208.36,208.23,4.95929767]
[1731252209376,15.46950059,208.31,208.24,15.46950059]
[1731252209578,15.46950059,208.31,208.23,21.76749767]
[1731252209579,15.46950059,208.32,208.25,15.46950059]
[1731252209790,15.46950059,208.33,208.26,15.46950059]
[1731252210482,15.46950059,208.33,208.2,39.48380059]
[1731252210483,6.6208,208.48,208.33,0.1]
[1731252210685,6.6208,208.48,208.42,15.46950059]
[1731252210995,22.09030059,208.48,208.41,15.46950059]
[1731252211192,6.6208,208.48,208.42,15.46950059]
[1731252211383,11.4175,208.48,208.42,15.46950059]
[1731252211582,15.46950059,208.47,208.39,15.46950059]
[1731252211785,26.88700059,208.48,208.41,15.46950059]
[1731252211977,20.26570059,208.5,208.42,15.46950059]
[1731252212172,15.46950059,208.48,208.41,15.46950059]
[1731252212383,15.46950059,208.45,208.38,15.46950059]
[1731252212595,15.46950059,208.45,208.34,16.7994]
[1731252212596,15.46950059,208.47,208.39,15.46950059]
[1731252212784,15.46950059,208.47,208.4,15.46950059]
[1731252212980,15.46950059,208.49,208.41,15.46950059]
[1731252213502,15.46950059,208.46,208.39,15.46950059]
[1731252213796,4.7969,208.47,208.38,15.46950059]
[1731252213980,15.46950059,208.45,208.38,15.46950059]
[1731252214180,15.46950059,208.45,208.37,15.46950059]
[1731252214603,15.46950059,208.43,208.35,15.46950059]
[1731252214891,15.46950059,208.4,208.33,15.46950059]
[1731252215093,15.46950059,208.41,208.33,15.46950059]
[1731252215300,15.46950059,208.41,208.32,4.8002]
[1731252215301,15.46950059,208.42,208.34,15.46950059]
[1731252215603,4.7975,208.44,208.32,4.8002]
[1731252215604,20.26700059,208.44,208.36,15.46950059]
[1731252215894,15.46950059,208.42,208.35,15.46950059]
[1731252216481,15.46950059,208.41,208.34,15.46950059]
[1731252216790,15.46950059,208.41,208.32,16.8009]
[1731252216791,15.46950059,208.42,208.35,15.46950059]
[1731252217102,15.46950059,208.43,208.35,15.46950059]
[1731252217509,15.46950059,208.44,208.36,15.46950059]
[1731252218207,15.46950059,208.44,208.37,15.46950059]
[1731252218375,15.46950059,208.44,208.32,16.801]
[1731252218376,15.46950059,208.44,208.36,15.46950059]
[1731252218583,20.26720059,208.43,208.36,15.46950059]
[1731252219195,20.26720059,208.43,208.35,15.46950059]
[1731252219398,4.7977,208.43,208.36,15.46950059]
[1731252219589,4.7977,208.43,208.37,15.46950059]
[1731252220096,4.7977,208.43,208.36,15.46950059]
[1731252220396,20.26720059,208.43,208.35,20.26900059]
[1731252220603,15.46950059,208.42,208.35,20.26900059]
[1731252220806,15.46950059,208.42,208.35,15.46950059]
[1731252221010,15.46950059,208.41,208.34,15.46950059]
[1731252221307,15.46950059,208.38,208.31,15.46950059]
[1731252221492,15.46950059,208.39,208.32,15.46950059]
[1731252221695,15.46950059,208.4,208.33,15.46950059]
[1731252221898,15.46950059,208.38,208.31,15.46950059]
[1731252222098,15.46950059,208.39,208.32,15.46950059]
[1731252222303,15.46950059,208.33,208.22,20.6407]
[1731252222493,15.46950059,208.37,208.3,15.46950059]
[1731252222693,4.7989,208.38,208.33,15.46950059]
[1731252223012,4.7989,208.38,208.22,16.809]
[1731252223188,16.7962,208.38,208.22,16.809]
[1731252223486,15.46950059,208.34,208.27,15.46950059]
[1731252224313,16.8962,208.38,208.26,15.46950059]
[1731252224314,15.46950059,208.33,208.26,15.46950059]
[1731252224697,15.46950059,208.32,208.25,15.46950059]
[1731252225028,20.26840059,208.38,208.31,15.46950059]
[1731252225208,15.46950059,208.39,208.33,15.46950059]
[1731252225585,4.7988,208.39,208.32,15.46950059]
[1731252225794,20.26830059,208.39,208.32,15.46950059]
[1731252226416,20.26830059,208.39,208.33,15.46950059]
[1731252226793,15.46950059,208.38,208.32,15.46950059]
[1731252227100,15.46950059,208.38,208.31,15.46950059]
[1731252227309,15.46950059,208.34,208.25,4.8017]
[1731252227497,15.46950059,208.34,208.27,15.46950059]
[1731252228408,4.8,208.33,208.28,15.46950059]
[1731252229110,4.8,208.33,208.27,15.46950059]
[1731252229808,15.46950059,208.31,208.25,15.46950059]
[1731252229991,20.26950059,208.33,208.26,15.46950059]
[1731252231107,4.8,208.33,208.26,15.46950059]
[1731252231413,15.46950059,208.31,208.24,15.46950059]
[1731252231615,4.8,208.33,208.23,12.0059]
[1731252231616,20.26950059,208.33,208.27,15.46950059]
[1731252231790,15.46950059,208.32,208.26,15.46950059]
[1731252231991,15.46950059,208.32,208.2,15.46950059]
[1731252232191,15.46950059,208.27,208.15,24.1202]
[1731252232411,15.46950059,208.28,208.21,15.46950059]
[1731252232791,4.8,208.33,208.23,15.46950059]
[1731252232792,15.46950059,208.29,208.23,15.46950059]
[1731252233002,15.46950059,208.32,208.26,15.46950059]
[1731252233209,15.46950059,208.31,208.25,15.46950059]
[1731252233595,20.27010059,208.31,208.25,15.46950059]
[1731252233795,20.27010059,208.31,208.24,4.802]
[1731252233796,20.27010059,208.31,208.24,20.27150059]
[1731252233996,15.46950059,208.3,208.24,20.27150059]
[1731252234194,15.46950059,208.3,208.24,15.46950059]
[1731252234401,20.27010059,208.31,208.24,20.27160059]
[1731252235092,20.27010059,208.31,208.22,12.0061]
[1731252235093,15.46950059,208.3,208.23,20.27180059]
[1731252235294,15.46950059,208.32,208.25,15.46950059]
[1731252235504,15.46950059,208.33,208.27,15.46950059]
[1731252236008,20.26940059,208.34,208.27,15.46950059]
[1731252236492,11.9977,208.38,208.31,15.46950059]
[1731252236493,4.7994,208.36,208.31,15.46950059]
[1731252236703,15.46950059,208.38,208.31,15.46950059]
[1731252236905,14.46692196,208.38,208.31,9.66782196]
[1731252237213,9.66782196,208.37,208.31,9.66782196]
[1731252237405,9.66782196,208.36,208.29,9.66782196]
[1731252237807,9.66782196,208.36,208.3,9.66782196]
[1731252238218,9.66782196,208.34,208.28,9.66782196]
[1731252238725,14.46762196,208.34,208.27,26.47232196]
[1731252239017,14.46762196,208.34,208.27,21.67092196]
[1731252239218,14.46762196,208.34,208.28,9.66782196]
[1731252239410,9.66782196,208.36,208.29,9.66782196]
[1731252239599,9.66782196,208.37,208.3,9.66782196]
[1731252240199,4.7986,208.39,208.28,9.66782196]
[1731252240200,9.66782196,208.35,208.28,9.66782196]
[1731252240524,14.46682196,208.38,208.31,9.66782196]
[1731252240824,9.66782196,208.36,208.29,9.66782196]
[1731252241030,9.66782196,208.35,208.28,9.66782196]
[1731252242225,4.7998,208.34,208.29,9.66782196]
[1731252242828,9.66782196,208.38,208.31,9.66782196]
[1731252243004,16.6379,208.4,208.27,16.8045]
[1731252243204,26.30572196,208.4,208.33,9.66782196]
[1731252243405,26.30572196,208.4,208.27,16.8045]
[1731252243724,31.10412196,208.4,208.33,9.66782196]
[1731252243928,21.08682196,208.42,208.37,9.66782196]
[1731252244103,20.1941,208.46,208.4,9.66782196]
[1731252244310,9.66782196,208.45,208.32,20.1]
[1731252244527,9.66782196,208.45,208.38,9.66782196]
[1731252244936,15.4581406,208.45,208.38,15.4581406]
[1731252245430,4.7975,208.44,208.35,11.9987]
[1731252245616,4.7975,208.44,208.38,15.4581406]
[1731252246229,15.4581406,208.43,208.36,15.4581406]
[1731252246425,4.7979,208.43,208.37,15.4581406]
[1731252247110,20.2555406,208.45,208.39,15.4581406]
[1731252247658,35.5575406,208.52,208.44,15.4581406]
[1731252247931,35.5575406,208.52,208.46,15.4581406]
[1731252248316,15.4581406,208.51,208.44,15.4581406]
[1731252248511,15.4581406,208.51,208.45,15.4581406]
[1731252249013,15.4581406,208.5,208.43,15.4581406]
[1731252249218,15.4581406,208.5,208.36,11.998]
[1731252249219,15.4581406,208.44,208.36,11.998]
[1731252249517,15.4581406,208.44,208.37,15.4581406]
[1731252250316,15.4581406,208.48,208.41,15.4581406]
[1731252250531,20.2547406,208.48,208.41,20.2563406]
[1731252250729,15.4581406,208.47,208.4,15.4581406]
[1731252250929,20.2547406,208.48,208.41,15.4581406]
[1731252251126,15.4581406,208.46,208.39,15.4581406]
[1731252251314,15.4581406,208.43,208.37,11.9978]
[1731252251518,15.4581406,208.44,208.38,15.4581406]
[1731252252732,20.2554406,208.45,208.38,20.2569406]
[1731252253040,15.4581406,208.43,208.38,4.7988]
[1731252253215,15.4581406,208.43,208.37,16.7969]
[1731252253416,15.4581406,208.4,208.32,12.0002]
[1731252253618,15.4581406,208.39,208.32,27.4583406]
[1731252253936,15.4581406,208.41,208.34,15.4581406]
[1731252254138,15.4581406,208.38,208.32,12.0002]
[1731252254435,15.4581406,208.36,208.28,32.2621406]
[1731252254615,15.4581406,208.34,208.27,15.4581406]
[1731252255010,15.4581406,208.33,208.26,15.4581406]
[1731252255215,15.4581406,208.32,208.25,15.4581406]
[1731252255433,15.4581406,208.3,208.21,4.8027]
[1731252255741,4.7996,208.35,208.26,15.4581406]
[1731252255742,15.4581406,208.33,208.26,15.4581406]
[1731252256039,15.4581406,208.32,208.24,15.4581406]
[1731252256240,15.4581406,208.32,208.25,15.4581406]
[1731252256745,15.4581406,208.33,208.26,15.4581406]
[1731252256921,15.4581406,208.34,208.27,15.4581406]
[1731252257115,15.4581406,208.33,208.26,15.4581406]
[1731252257439,15.4581406,208.33,208.17,24.0179]
[1731252257440,6.6352,208.23,208.08,4.8057]
[1731252257628,15.4581406,208.15,208.08,15.4581406]
[1731252257823,15.4581406,208.2,208.06,15.4581406]
[1731252257824,15.4581406,208.14,208.06,15.4581406]
[1731252258027,15.4581406,208.13,208.06,15.4581406]
[1731252258440,15.4581406,208.15,208.07,15.4581406]
[1731252258618,15.4581406,208.13,208.06,15.4581406]
[1731252258820,15.4581406,208.12,208.05,27.4743406]
[1731252259022,15.4581406,208.13,208.06,15.4581406]
[1731252259241,15.4581406,208.13,208.05,27.4743406]
[1731252259737,15.4581406,208.12,207.96,40.8729]
[1731252259918,15.4581406,208.12,208.04,15.4581406]
[1731252260548,15.4581406,208.11,208.04,15.4581406]
[1731252260918,15.4581406,208.12,208.04,15.4581406]
[1731252261243,15.4581406,208.14,208.06,15.4581406]
[1731252261433,15.4581406,208.13,208.06,15.4581406]
[1731252261642,15.4581406,208.12,208.04,15.4581406]
[1731252261839,15.4581406,208.13,208.06,15.4581406]
[1731252262137,15.4581406,208.13,208.02,4.8072]
[1731252262138,15.4581406,208.12,208.05,15.4581406]
[1731252262344,15.4581406,208.09,208.01,15.4581406]
[1731252262526,4.8048,208.13,208.0,15.4581406]
[1731252262527,15.4581406,208.08,208.0,15.4581406]
[1731252263125,15.4581406,208.07,207.99,15.4581406]
[1731252263332,6.6352,208.11,207.98,15.4581406]
[1731252263333,15.4581406,208.05,207.98,15.4581406]
[1731252263648,20.2648406,208.05,207.97,15.4581406]
[1731252263844,20.2642406,208.07,207.99,15.4581406]
[1731252264146,20.2642406,208.07,207.96,16.8293]
[1731252264147,15.4581406,208.05,207.98,15.4581406]
[1731252264327,15.4581406,208.05,207.97,15.4581406]
[1731252264829,15.4581406,208.07,208.01,15.4581406]
[1731252265037,4.8056,208.09,208.03,15.4581406]
[1731252265540,6.6352,208.11,208.05,15.4581406]
[1731252265541,11.4404,208.11,208.05,15.4581406]
[1731252265738,15.3037,208.12,208.07,15.4581406]
[1731252266344,15.3037,208.12,208.09,15.4581406]
[1731252266555,10.852,208.16,208.02,16.8251]
[1731252266752,4.8041,208.16,208.1,15.4581406]
[1731252266928,15.4581406,208.13,208.06,15.4581406]
[1731252267946,15.4581406,208.1,208.03,15.4581406]
[1731252268152,15.4581406,208.07,207.98,4.808]
[1731252268457,15.4581406,208.06,207.98,15.4581406]
[1731252269650,15.4581406,208.06,207.99,15.4581406]
[1731252269853,20.6773,208.09,208.02,15.4581406]
[1731252270147,15.4581406,208.13,208.01,16.8258]
[1731252270359,15.4581406,208.13,208.05,15.4581406]
[1731252270737,6.0479,208.14,208.01,16.8258]
[1731252270947,6.0479,208.14,208.08,15.4581406]
[1731252271135,15.4581406,208.1,208.03,15.4581406]
[1731252271335,15.4581406,208.1,208.01,16.8258]
[1731252271336,15.4581406,208.12,208.05,15.4581406]
[1731252271530,15.4581406,208.13,208.01,16.8258]